[Event "Elite Hotels Open 2019"]
[Site "Vaxjo"]
[Date "2019.02.08"]
[Round "1.13"]
[White "Seo, Jung Min"]
[Black "Eriksson, Per"]
[Result "1-0"]
[ECO "D37"]
[WhiteElo "2368"]
[BlackElo "1872"]
[Annotator "RC"]
[PlyCount "79"]
[EventDate "2019.02.08"]
[EventType "swiss"]
[EventCountry "SWE"]
[SourceTitle "playchess.com"]
[Source "ChessBase"]
[SourceQuality "1"]
[TimeControl "5400+30"]

1. d4 {[%emt 1:15:22]} Nf6 {[%emt 1:15:22]} 2. c4 {[%emt 0:00:26]} e6 {[%emt 0:00:27]} 3. Nf3 {[%emt 0:00:26]} d5 {[%emt 0:00:27]} 4. Nc3 {[%emt 0:00:27]} Be7 {[%emt 0:00:28]} 5. Bf4 {[%emt 0:00:27]} O-O {[%emt 0:00:32]} 6. e3 {[%emt 0:00:27]} b6 {[%emt 0:00:29]} 7. Rc1 {[%emt 0:00:35]} Bb7 {[%emt 0:00:35]} 8. Be2 {[%emt 0:01:06]} Nbd7 {[%emt 0:00:35]} 9. O-O {[%emt 0:00:30]} c5 {[%emt 0:00:30]} 10. cxd5 {[%emt 0:00:49]} Nxd5 {[%emt 0:00:33]} 11. Bg3 {[%emt 0:00:57]} Rc8 {[%emt 0:00:54]} 12. Nxd5 {[%emt 0:00:51]} Bxd5 {[%emt 0:00:37]} 13. Ba6 {[%emt 0:00:42]} Ra8 {[%emt 0:00:46]} 14. b3 {[%emt 0:00:38]} Nf6 {[%emt 0:00:36]} 15. Qe2 {[%emt 0:01:05]} Ne4 {[%emt 0:01:45]} 16. Rfd1 {[%emt 0:00:38]} Nxg3 {[%emt 0:00:31]} 17. hxg3 {[%emt 0:00:27]} cxd4 {[%emt 0:00:39]} 18. Nxd4 {[%emt 0:00:37]} Ba3 {[%emt 0:01:08]} 19. Rc2 {[%emt 0:01:11]} Be4 {[%emt 0:00:35]} 20. Nxe6 {[%emt 0:01:19]} Qe7 {[%emt 0:00:27]} 21. Nxf8 {[%emt 0:00:28]} Bxc2 {[%emt 0:00:28]} 22. Qxc2 {[%emt 0:00:26]} Rxf8 {[%emt 0:00:28]} 23. Qd3 {[%emt 0:00:39]} Bc5 {[%emt 0:00:36]} 24. Qd7 {[%emt 0:01:22]} Qe5 {[%emt 0:01:43]} 25. Qxa7 {[%emt 0:01:17]} Qb2 {[%emt 0:01:13]} 26. Bf1 {[%emt 0:01:01]} Re8 {[%emt 0:01:17]} 27. Qd7 {[%emt 0:00:43]} Qe5 {[%emt 0:00:29]} 28. Bc4 {[%emt 0:00:36]} Re7 {[%emt 0:01:05]} 29. Qc8+ {[%emt 0:00:37]} Re8 {[%emt 0:00:27]} 30. Qb7 {[%emt 0:00:52]} Rf8 {[%emt 0:00:33]} 31. a4 {[%emt 0:00:34]} Kh8 {[%emt 0:00:43]} 32. Qd5 {[%emt 0:00:40]} Qf6 {[%emt 0:00:45]} 33. Qf3 {[%emt 0:00:34]} Qe5 {[%emt 0:00:44]} 34. Rd7 {[%emt 0:00:37]} f6 {[%emt 0:01:36]} 35. Qd5 {[%emt 0:00:39]} Qe8 {[%emt 0:01:11]} 36. Bb5 {[%emt 0:00:53]} Qc8 {[%emt 0:01:07]} 37. Bd3 {[%emt 0:00:48]} Qe8 {[%emt 0:00:36]} 38. Qe4 {[%emt 0:01:13]} Qh5 {[%emt 0:00:41]} 39. Bf1 {[%emt 0:01:01]} Qg5 {[%emt 0:01:06]} 40. b4 {[%emt 0:00:38]} 1-0

[Event "Elite Hotels Open 2019"]
[Site "Vaxjo"]
[Date "2019.02.08"]
[Round "1.16"]
[White "Ufnarovski, Victor"]
[Black "Kucuksari, Kaan"]
[Result "0-1"]
[ECO "C13"]
[WhiteElo "1852"]
[BlackElo "2301"]
[Annotator "NA RC"]
[PlyCount "76"]
[EventDate "2019.02.08"]
[EventType "swiss"]
[EventCountry "SWE"]
[SourceTitle "playchess.com"]
[Source "ChessBase"]
[SourceQuality "1"]
[TimeControl "5400+30"]

1. d4 {[%emt 1:15:21]} d5 {[%emt 1:15:24]} 2. Nc3 {[%emt 0:00:27]} Nf6 {[%emt 0:00:27]} 3. Bg5 {[%emt 0:00:27]} e6 {[%emt 0:00:28]} 4. e4 {[%emt 0:00:29]} Be7 {[%emt 0:00:34]} 5. e5 {[%emt 0:00:28]} Nfd7 {[%emt 0:00:27]} 6. h4 {[%emt 0:00:43]} a6 {[%emt 0:00:30]} 7. Nh3 {[%emt 0:00:28]} c5 8. Qg4 {[%emt 0:01:05]} cxd4 {[%emt 0:01:22]} 9. Bxe7 Qxe7 {[%emt 0:00:35]} 10. Qxg7 {[%emt 0:00:57]} Qf8 {[%emt 0:00:33]} 11. Qxf8+ Rxf8 {[%emt 0:01:43]} 12. Ne2 {[%emt 0:00:57]} d3 {[%emt 0:00:40]} 13. cxd3 {[%emt 0:00:26]} Nxe5 {[%emt 0:00:26]} 14. d4 {[%emt 0:00:39]} Nd3+ {[%emt 0:00:29]} 15. Kd2 {[%emt 0:00:27]} Nxb2 {[%emt 0:00:27]} 16. Nc3 {[%emt 0:00:32]} Nc6 17. Kc2 {[%emt 0:01:05]} Nc4 {[%emt 0:00:58]} 18. Bxc4 {[%emt 0:00:28]} dxc4 {[%emt 0:00:27]} 19. d5 {[%emt 0:00:30]} Nb4+ 20. Kd2 Nxd5 {[%emt 0:01:00]} 21. Nxd5 {[%emt 0:01:00]} exd5 {[%emt 0:00:26]} 22. Ng5 {[%emt 0:00:26]} Bf5 {[%emt 0:00:44]} 23. Rhe1+ {[%emt 0:00:33]} Kd7 {[%emt 0:00:27]} 24. Re5 {[%emt 0:00:28]} Be6 {[%emt 0:00:27]} 25. Nxh7 {[%emt 0:00:30]} Rh8 {[%emt 0:00:26]} 26. Rh5 d4 27. Nf6+ {[%emt 0:02:41]} Ke7 {[%emt 0:01:20]} 28. Nd5+ {[%emt 0:00:26]} Kd6 29. Nf4 {[%emt 0:01:10]} Rxh5 {[%emt 0:01:10]} 30. Nxh5 Rh8 31. Nf4 {[%emt 0:01:21]} Rxh4 {[%emt 0:01:12]} 32. g3 {[%emt 0:00:28]} Rh2 {[%emt 0:00:27]} 33. Nxe6 {[%emt 0:01:22]} Rxf2+ 34. Ke1 {[%emt 0:00:30]} Rh2 {[%emt 0:01:02]} 35. Rd1 {[%emt 0:00:49]} Rh1+ {[%emt 0:00:27]} 36. Kd2 {[%emt 0:00:28]} c3+ {[%emt 0:00:28]} 37. Kc1 {[%emt 0:00:27]} Rxd1+ {[%emt 0:00:29]} 38. Kxd1 {[%emt 0:00:26]} Kxe6 {[%emt 0:00:28]} 0-1

[Event "Elite Hotels Open 2019"]
[Site "Vaxjo"]
[Date "2019.02.08"]
[Round "2.2"]
[White "Westerberg, Jonathan"]
[Black "Goransson, Martin"]
[Result "0-1"]
[ECO "A04"]
[WhiteElo "2544"]
[BlackElo "2074"]
[Annotator "RC"]
[PlyCount "90"]
[EventDate "2019.02.08"]
[EventType "swiss"]
[EventCountry "SWE"]
[SourceTitle "playchess.com"]
[Source "ChessBase"]
[SourceQuality "1"]
[TimeControl "900+5"]

1. Nf3 {[%emt 0:00:00]} c5 {[%emt 0:00:00]} 2. g3 {[%emt 0:00:09]} Nc6 {[%emt 0:00:03]} 3. Bg2 {[%emt 0:00:04]} e5 {[%emt 0:00:08]} 4. O-O {[%emt 0:00:18]} g6 {[%emt 0:00:04]} 5. d3 {[%emt 0:01:45]} Bg7 {[%emt 0:00:03]} 6. Bg5 {[%emt 0:01:32]} f6 {[%emt 0:00:02]} 7. Bd2 {[%emt 0:00:01]} Nge7 {[%emt 0:00:06]} 8. Nc3 {[%emt 0:00:08]} d5 {[%emt 0:00:44]} 9. a3 {[%emt 0:01:02]} O-O {[%emt 0:00:16]} 10. Rb1 {[%emt 0:00:17]} a5 {[%emt 0:00:07]} 11. e4 {[%emt 0:00:47]} d4 {[%emt 0:00:48]} 12. Na4 {[%emt 0:00:41]} b6 {[%emt 0:01:08]} 13. c4 {[%emt 0:01:38]} Bd7 {[%emt 0:02:25]} 14. b3 {[%emt 0:01:37]} Ra6 {[%emt 0:01:51]} 15. Qe2 {[%emt 0:00:57]} Qc8 {[%emt 0:00:25]} 16. Kh1 {[%emt 0:00:09]} h6 {[%emt 0:00:19]} 17. Ng1 {[%emt 0:00:16]} Kh7 {[%emt 0:01:19]} 18. f4 {[%emt 0:00:09]} f5 {[%emt 0:00:28]} 19. exf5 {[%emt 0:00:26]} Nxf5 {[%emt 0:00:13]} 20. Rbe1 {[%emt 0:01:50]} exf4 {[%emt 0:01:13]} 21. Bxf4 {[%emt 0:00:03]} Re8 {[%emt 0:00:08]} 22. Qf2 {[%emt 0:00:24]} Ne3 {[%emt 0:00:14]} 23. Bxe3 {[%emt 0:00:10]} dxe3 {[%emt 0:00:14]} 24. Rxe3 {[%emt 0:00:07]} Rf8 {[%emt 0:00:36]} 25. Rf3 {[%emt 0:00:12]} Rxf3 {[%emt 0:00:09]} 26. Nxf3 {[%emt 0:00:30]} Bg4 {[%emt 0:00:20]} 27. Nh4 {[%emt 0:00:19]} Ne5 {[%emt 0:00:28]} 28. Be4 {[%emt 0:00:30]} Bh3 {[%emt 0:00:40]} 29. Re1 {[%emt 0:00:35]} b5 {[%emt 0:00:01]} 30. Qxc5 {[%emt 0:00:20]} Qd8 {[%emt 0:01:20]} 31. cxb5 {[%emt 0:00:18]} Rd6 {[%emt 0:00:38]} 32. Nb2 {[%emt 0:00:05]} Ng4 {[%emt 0:00:28]} 33. Nc4 {[%emt 0:00:02]} Bd4 {[%emt 0:00:05]} 34. Bxg6+ {[%emt 0:00:12]} Kh8 {[%emt 0:00:13]} 35. Qxd4+ {[%emt 0:00:11]} Rxd4 {[%emt 0:00:18]} 36. b6 {[%emt 0:00:00]} Rxd3 {[%emt 0:00:15]} 37. Be4 {[%emt 0:00:14]} Nf2+ {[%emt 0:00:07]} 38. Kg1 {[%emt 0:00:01]} Nxe4 {[%emt 0:00:01]} 39. Ng6+ {[%emt 0:00:00]} Kg7 {[%emt 0:00:00]} 40. Nf4 {[%emt 0:00:00]} Qd4+ {[%emt 0:00:05]} 41. Kh1 {[%emt 0:00:00]} Nf2+ {[%emt 0:00:02]} 42. Kg1 {[%emt 0:00:00]} Ng4+ {[%emt 0:00:11]} 43. Kh1 {[%emt 0:00:00]} Rd1 {[%emt 0:00:10]} 44. Ne6+ {[%emt 0:00:00]} Kf6 {[%emt 0:00:09]} 45. Nxd4 {[%emt 0:00:00]} Rxe1# {[%emt 0:00:00]} 0-1

[Event "Elite Hotels Open 2019"]
[Site "Vaxjo"]
[Date "2019.02.08"]
[Round "2.7"]
[White "Mardell, Jonas"]
[Black "Cramling, Pia"]
[Result "1-0"]
[ECO "B94"]
[WhiteElo "2029"]
[BlackElo "2462"]
[Annotator "ChessBase"]
[PlyCount "95"]
[EventDate "2019.02.08"]
[EventType "swiss"]
[EventCountry "SWE"]
[SourceTitle "playchess.com"]
[Source "ChessBase"]
[SourceQuality "1"]
[TimeControl "900+5"]

1. e4 {[%emt 0:00:00]} c5 {[%emt 0:00:00]} 2. Nf3 {[%emt 0:00:08]} d6 {[%emt 0:00:01]} 3. d4 {[%emt 0:00:02]} cxd4 {[%emt 0:00:02]} 4. Nxd4 {[%emt 0:00:02]} Nf6 {[%emt 0:00:01]} 5. Nc3 {[%emt 0:00:02]} a6 {[%emt 0:00:01]} 6. Bg5 {[%emt 0:00:17]} Nc6 {[%emt 0:00:11]} 7. Be2 {[%emt 0:02:12]} e6 {[%emt 0:00:16]} 8. O-O {[%emt 0:00:29]} Be7 {[%emt 0:00:23]} 9. a4 {[%emt 0:00:21]} Bd7 {[%emt 0:00:23]} 10. Kh1 {[%emt 0:00:52]} h6 {[%emt 0:00:54]} 11. Be3 {[%emt 0:00:21]} Qc7 {[%emt 0:01:00]} 12. f4 {[%emt 0:00:34]} O-O {[%emt 0:00:05]} 13. Qe1 {[%emt 0:01:14]} Rac8 {[%emt 0:01:09]} 14. Qg3 {[%emt 0:01:13]} Nxd4 {[%emt 0:00:07]} 15. Bxd4 {[%emt 0:00:04]} Bc6 {[%emt 0:00:01]} 16. e5 {[%emt 0:01:36]} dxe5 {[%emt 0:00:11]} 17. Bxe5 {[%emt 0:00:04]} Qa5 {[%emt 0:01:21]} 18. f5 {[%emt 0:00:30]} Bd5 {[%emt 0:03:43]} 19. fxe6 {[%emt 0:02:12]} fxe6 {[%emt 0:00:04]} 20. Bd3 {[%emt 0:00:18]} g5 {[%emt 0:04:54]} 21. Nxd5 {[%emt 0:01:06]} Qxd5 {[%emt 0:00:40]} 22. Rae1 {[%emt 0:00:17]} Nh5 {[%emt 0:00:38]} 23. Rxf8+ {[%emt 0:01:02]} Rxf8 {[%emt 0:00:13]} 24. Qh3 {[%emt 0:00:01]} Nf4 {[%emt 0:00:24]} 25. Bxf4 {[%emt 0:00:09]} gxf4 {[%emt 0:00:06]} 26. Qxh6 {[%emt 0:00:03]} Rf7 {[%emt 0:00:01]} 27. Qxe6 {[%emt 0:01:07]} Qxe6 {[%emt 0:00:03]} 28. Rxe6 {[%emt 0:00:01]} Kg7 {[%emt 0:00:02]} 29. Rg6+ {[%emt 0:00:09]} Kf8 {[%emt 0:00:03]} 30. Bc4 {[%emt 0:00:06]} Rg7 {[%emt 0:00:01]} 31. Rxg7 {[%emt 0:00:04]} Kxg7 {[%emt 0:00:01]} 32. c3 {[%emt 0:00:05]} a5 {[%emt 0:00:01]} 33. Kg1 {[%emt 0:00:02]} Bc5+ {[%emt 0:00:02]} 34. Kf1 {[%emt 0:00:01]} Kf6 {[%emt 0:00:02]} 35. Ke2 {[%emt 0:00:01]} Bg1 {[%emt 0:00:01]} 36. h4 {[%emt 0:00:07]} b6 {[%emt 0:00:03]} 37. Kf3 {[%emt 0:00:01]} Bh2 {[%emt 0:00:05]} 38. Ke4 {[%emt 0:00:10]} Bg3 {[%emt 0:00:02]} 39. h5 {[%emt 0:00:01]} Kg5 {[%emt 0:00:01]} 40. Be2 {[%emt 0:00:06]} Bf2 {[%emt 0:00:03]} 41. Kd5 {[%emt 0:00:03]} Be3 {[%emt 0:00:03]} 42. Kc4 {[%emt 0:00:08]} Bc1 {[%emt 0:00:03]} 43. b4 {[%emt 0:00:01]} Bd2 {[%emt 0:00:03]} 44. Bf3 {[%emt 0:00:13]} Be1 {[%emt 0:00:03]} 45. bxa5 {[%emt 0:00:32]} bxa5 {[%emt 0:00:02]} 46. Kd4 {[%emt 0:00:01]} Kf5 {[%emt 0:00:24]} 47. c4 {[%emt 0:00:01]} Bb4 {[%emt 0:00:04]} 48. Kd5 {[%emt 0:00:01] Ke5+} 1-0

[Event "Elite Hotels Open 2019"]
[Site "Vaxjo"]
[Date "2019.02.09"]
[Round "6.1"]
[White "Gritsak, Orest"]
[Black "Jepson, Christian"]
[Result "1/2-1/2"]
[ECO "D37"]
[WhiteElo "2466"]
[BlackElo "2389"]
[Annotator "RC"]
[PlyCount "23"]
[EventDate "2019.02.08"]
[EventType "swiss"]
[EventCountry "SWE"]
[SourceTitle "playchess.com"]
[Source "ChessBase"]
[SourceQuality "1"]
[TimeControl "5400+30"]

1. Nf3 {[%emt 0:00:00]} d5 {[%emt 0:00:00]} 2. d4 {[%emt 0:00:00]} Nf6 {[%emt 0:00:00]} 3. c4 {[%emt 0:00:00]} e6 {[%emt 0:00:00]} 4. Nc3 {[%emt 0:00:04]} Be7 {[%emt 0:00:00]} 5. Bg5 {[%emt 0:01:03]} h6 {[%emt 0:00:34]} 6. Bh4 {[%emt 0:00:47]} O-O {[%emt 0:00:07]} 7. Rc1 {[%emt 0:01:50]} Nbd7 {[%emt 0:15:05]} 8. e3 {[%emt 0:01:03]} c5 {[%emt 0:12:28]} 9. cxd5 {[%emt 0:08:02]} Nxd5 {[%emt 0:02:25]} 10. Bxe7 {[%emt 0:00:08]} Nxe7 {[%emt 0:00:58]} 11. Be2 {[%emt 0:11:12]} b6 {[%emt 0:03:30]} 12. O-O {[%emt 0:06:16]} 1/2-1/2

[Event "Elite Hotels Open 2019"]
[Site "Vaxjo"]
[Date "2019.02.09"]
[Round "6.2"]
[White "Kucuksari, Kaan"]
[Black "Hillarp Persson, Tiger"]
[Result "0-1"]
[ECO "A61"]
[WhiteElo "2301"]
[BlackElo "2558"]
[Annotator "ChessBase"]
[PlyCount "102"]
[EventDate "2019.02.08"]
[EventType "swiss"]
[EventCountry "SWE"]
[SourceTitle "playchess.com"]
[Source "ChessBase"]
[SourceQuality "1"]
[TimeControl "5400+30"]

1. d4 {[%emt 0:00:00]} Nf6 {[%emt 0:00:59]} 2. Nf3 {[%emt 0:00:00]} e6 {[%emt 0:00:06]} 3. c4 {[%emt 0:00:00]} c5 {[%emt 0:00:10]} 4. d5 {[%emt 0:00:03]} d6 {[%emt 0:00:12]} 5. Nc3 {[%emt 0:00:05]} exd5 {[%emt 0:00:05]} 6. cxd5 {[%emt 0:00:06]} g6 {[%emt 0:00:07]} 7. Bf4 {[%emt 0:00:08]} Bg7 {[%emt 0:00:34]} 8. Qa4+ {[%emt 0:00:13]} Bd7 {[%emt 0:00:07]} 9. Qb3 {[%emt 0:00:03]} Qc7 {[%emt 0:00:08]} 10. h3 {[%emt 0:00:22]} O-O {[%emt 0:00:27]} 11. e3 {[%emt 0:00:06]} Na6 {[%emt 0:00:07]} 12. Be2 {[%emt 0:08:08]} Rab8 {[%emt 0:06:28]} 13. a4 {[%emt 0:00:32]} Nb4 {[%emt 0:00:41]} 14. O-O {[%emt 0:03:12]} a6 {[%emt 0:05:10]} 15. Nd2 {[%emt 0:05:46]} Rfe8 {[%emt 0:03:17]} 16. a5 {[%emt 0:04:48]} Bf5 {[%emt 0:18:36]} 17. Rfc1 {[%emt 0:05:18]} Qe7 {[%emt 0:01:00]} 18. g4 {[%emt 0:07:17]} Bd3 {[%emt 0:04:25]} 19. Bf3 {[%emt 0:06:38]} b5 {[%emt 0:06:27]} 20. axb6 {[%emt 0:07:26]} Rxb6 {[%emt 0:00:25]} 21. Nc4 {[%emt 0:03:42]} Bxc4 {[%emt 0:00:08]} 22. Qxc4 {[%emt 0:00:05]} Nd7 {[%emt 0:00:29]} 23. Be2 {[%emt 0:03:33]} Ne5 {[%emt 0:20:29]} 24. Qe4 {[%emt 0:02:58]} Qf8 {[%emt 0:00:06]} 25. Qb1 {[%emt 0:01:49]} f5 {[%emt 0:01:17]} 26. Kg2 {[%emt 0:05:44]} Qf7 {[%emt 0:04:09]} 27. Rd1 {[%emt 0:01:33]} c4 {[%emt 0:09:41]} 28. Ra4 {[%emt 0:12:41]} Ned3 {[%emt 0:07:13]} 29. Bxd3 {[%emt 0:00:52]} cxd3 {[%emt 0:00:11]} 30. Rxd3 {[%emt 0:09:43]} Nxd3 {[%emt 0:02:19]} 31. Qxd3 {[%emt 0:00:03]} Rxb2 {[%emt 0:00:35]} 32. gxf5 {[%emt 0:01:08]} Rb3 {[%emt 0:02:59]} 33. fxg6 {[%emt 0:00:09]} Qf6 {[%emt 0:00:44]} 34. gxh7+ {[%emt 0:01:06]} Kh8 {[%emt 0:00:16]} 35. Qxa6 {[%emt 0:02:32]} Rxc3 {[%emt 0:00:48]} 36. Qxd6 {[%emt 0:00:16]} Qf5 {[%emt 0:01:59]} 37. Bg3 {[%emt 0:01:56]} Rd3 {[%emt 0:00:31]} 38. Rf4 {[%emt 0:04:24]} Qxd5+ {[%emt 0:00:07]} 39. Qxd5 {[%emt 0:00:04]} Rxd5 {[%emt 0:00:07]} 40. Rh4 {[%emt 0:02:48]} Rd2 {[%emt 0:00:33]} 41. Rh5 {[%emt 0:01:07]} Ra2 {[%emt 0:01:18]} 42. Kf3 {[%emt 0:01:25]} Ra4 {[%emt 0:00:18]} 43. Bf4 {[%emt 0:00:39]} Re7 {[%emt 0:00:16]} 44. Kg4 {[%emt 0:00:59]} Be5 {[%emt 0:01:55]} 45. h4 {[%emt 0:00:27]} Bxf4 {[%emt 0:00:18]} 46. exf4 {[%emt 0:00:03]} Rf7 {[%emt 0:00:16]} 47. Rf5 {[%emt 0:01:01]} Rxf5 {[%emt 0:00:11]} 48. Kxf5 {[%emt 0:00:05]} Kxh7 {[%emt 0:00:07]} 49. Kg5 {[%emt 0:00:14]} Kg7 {[%emt 0:00:35]} 50. h5 {[%emt 0:00:24]} Ra1 {[%emt 0:00:37]} 51. h6+ {[%emt 0:00:51]} Kf7 {[%emt 0:00:09]} 0-1

[Event "Elite Hotels Open 2019"]
[Site "Vaxjo"]
[Date "2019.02.09"]
[Round "6.4"]
[White "Bellon Lopez, Juan Manuel"]
[Black "Hector, Jonny"]
[Result "1-0"]
[ECO "D12"]
[WhiteElo "2336"]
[BlackElo "2488"]
[Annotator "ChessBase"]
[PlyCount "199"]
[EventDate "2019.02.08"]
[EventType "swiss"]
[EventCountry "SWE"]
[SourceTitle "playchess.com"]
[Source "ChessBase"]
[SourceQuality "1"]
[TimeControl "5400+30"]

1. d4 {[%emt 0:00:00]} d5 {[%emt 0:00:00]} 2. Nf3 {[%emt 0:00:00]} Nf6 {[%emt 0:00:00]} 3. c4 {[%emt 0:00:47]} c6 {[%emt 0:00:01]} 4. e3 {[%emt 0:00:17]} Bf5 {[%emt 0:00:28]} 5. Nc3 {[%emt 0:00:14]} e6 {[%emt 0:00:25]} 6. Nh4 {[%emt 0:01:41]} Be4 {[%emt 0:02:56]} 7. f3 {[%emt 0:00:25]} Bg6 {[%emt 0:00:04]} 8. Qb3 {[%emt 0:01:01]} Qc7 {[%emt 0:01:05]} 9. Bd2 {[%emt 0:00:54]} Be7 {[%emt 0:00:21]} 10. Nxg6 {[%emt 0:01:33]} hxg6 {[%emt 0:00:05]} 11. O-O-O {[%emt 0:00:35]} dxc4 {[%emt 0:02:46]} 12. Bxc4 {[%emt 0:00:24]} a6 {[%emt 0:00:46]} 13. Ne4 {[%emt 0:02:39]} Nbd7 {[%emt 0:08:14]} 14. Kb1 {[%emt 0:01:03]} b5 {[%emt 0:06:44]} 15. Be2 {[%emt 0:00:07]} c5 {[%emt 0:03:52]} 16. Nxc5 {[%emt 0:02:24]} Nxc5 {[%emt 0:05:55]} 17. dxc5 {[%emt 0:00:32]} Bxc5 {[%emt 0:04:02]} 18. Rc1 {[%emt 0:08:47]} Qa7 {[%emt 0:02:55]} 19. Qc3 {[%emt 0:07:11]} Be7 {[%emt 0:02:04]} 20. Qc6+ {[%emt 0:00:43]} Kf8 {[%emt 0:01:14]} 21. Ba5 {[%emt 0:10:29]} Kg8 {[%emt 0:04:11]} 22. Bb6 {[%emt 0:00:41]} Qb8 {[%emt 0:00:06]} 23. Bc7 {[%emt 0:02:38]} Qf8 {[%emt 0:00:52]} 24. e4 {[%emt 0:00:21]} Qe8 {[%emt 0:10:20]} 25. Rhd1 {[%emt 0:04:11]} Kh7 {[%emt 0:00:22]} 26. g4 {[%emt 0:04:58]} Qxc6 {[%emt 0:04:46]} 27. Rxc6 {[%emt 0:00:08]} Rhc8 {[%emt 0:00:11]} 28. Rdc1 {[%emt 0:01:27]} g5 {[%emt 0:00:49]} 29. a4 {[%emt 0:01:59]} bxa4 {[%emt 0:06:12]} 30. Bxa6 {[%emt 0:02:39]} Rf8 {[%emt 0:02:32]} 31. R1c4 {[%emt 0:03:37]} Nd7 {[%emt 0:02:35]} 32. Rxa4 {[%emt 0:20:36]} Nb8 {[%emt 0:02:50]} 33. Rb6 {[%emt 0:02:21]} Nd7 {[%emt 0:00:07]} 34. Rc6 {[%emt 0:01:35]} Nb8 {[%emt 0:00:04]} 35. Bxb8 {[%emt 0:04:10]} Raxb8 {[%emt 0:00:08]} 36. Bd3 {[%emt 0:00:27]} Rb7 {[%emt 0:00:26]} 37. Rc2 {[%emt 0:03:47]} Rfb8 {[%emt 0:03:06]} 38. e5+ {[%emt 0:00:55]} Kh6 {[%emt 0:08:05]} 39. Be4 {[%emt 0:00:07]} Rb5 {[%emt 0:00:54]} 40. Ra7 {[%emt 0:00:19]} Bc5 {[%emt 0:00:11]} 41. Rxf7 {[%emt 0:01:25]} Bd4 {[%emt 0:01:49]} 42. Re7 {[%emt 0:01:47]} Rxb2+ {[%emt 0:00:53]} 43. Rxb2 {[%emt 0:00:14]} Rxb2+ {[%emt 0:00:13]} 44. Kc1 {[%emt 0:00:04]} Rb6 {[%emt 0:01:50]} 45. Re8 {[%emt 0:00:18]} g6 {[%emt 0:00:16]} 46. Rg8 {[%emt 0:00:17]} Kh7 {[%emt 0:00:21]} 47. Rxg6 {[%emt 0:00:16]} Kh8 {[%emt 0:00:15]} 48. Kc2 {[%emt 0:01:13]} Rb2+ {[%emt 0:01:04]} 49. Kd3 {[%emt 0:00:25]} Bxe5 {[%emt 0:00:09]} 50. Rxe6 {[%emt 0:01:08]} Bxh2 {[%emt 0:00:15]} 51. Rh6+ {[%emt 0:00:18]} Kg7 {[%emt 0:01:14]} 52. Rg6+ {[%emt 0:00:04]} Kf7 {[%emt 0:03:15]} 53. Rxg5 {[%emt 0:00:05]} Ke6 {[%emt 0:00:31]} 54. Bd5+ {[%emt 0:00:41]} Kd6 {[%emt 0:00:51]} 55. Bc4 {[%emt 0:00:51]} Rb1 {[%emt 0:02:56]} 56. Rf5 {[%emt 0:00:56]} Rd1+ {[%emt 0:01:52]} 57. Ke2 {[%emt 0:01:38]} Rd4 {[%emt 0:00:56]} 58. Bg8 {[%emt 0:00:47]} Ra4 {[%emt 0:03:58]} 59. g5 {[%emt 0:00:40]} Be5 {[%emt 0:00:21]} 60. g6 {[%emt 0:00:27]} Rf4 {[%emt 0:00:41]} 61. Rg5 {[%emt 0:01:56]} Bg7 {[%emt 0:00:48]} 62. Bf7 {[%emt 0:02:06]} Ra4 {[%emt 0:00:55]} 63. Rb5 {[%emt 0:00:24]} Ke7 {[%emt 0:00:31]} 64. Rb7+ {[%emt 0:00:30]} Kf6 {[%emt 0:00:06]} 65. Be8 {[%emt 0:00:19]} Ra8 {[%emt 0:00:04]} 66. Bf7 {[%emt 0:00:53]} Ra4 {[%emt 0:00:57]} 67. Kf2 {[%emt 0:00:39]} Bh6 {[%emt 0:01:06]} 68. Kg3 {[%emt 0:01:30]} Rd4 {[%emt 0:00:31]} 69. Rb6+ {[%emt 0:00:53]} Kg7 {[%emt 0:00:12]} 70. Kh3 {[%emt 0:01:11]} Rf4 {[%emt 0:01:02]} 71. Kg2 {[%emt 0:00:24]} Rd4 {[%emt 0:00:08]} 72. Bb3 {[%emt 0:00:55]} Bf4 {[%emt 0:00:26]} 73. Bf7 {[%emt 0:00:29]} Bh6 {[%emt 0:01:11]} 74. Be8 {[%emt 0:00:27]} Rd8 {[%emt 0:00:17]} 75. Re6 {[%emt 0:00:40]} Kf8 {[%emt 0:01:03]} 76. Bc6 {[%emt 0:00:16]} Kg7 {[%emt 0:00:21]} 77. Be4 {[%emt 0:00:28]} Rf8 {[%emt 0:00:45]} 78. Kg3 {[%emt 0:00:51]} Bg5 {[%emt 0:00:35]} 79. Kg4 {[%emt 0:00:32]} Bf6 {[%emt 0:00:42]} 80. f4 {[%emt 0:00:22]} Rb8 {[%emt 0:01:01]} 81. Rc6 {[%emt 0:01:02]} Re8 {[%emt 0:00:13]} 82. Kf5 {[%emt 0:00:17]} Bh4 {[%emt 0:00:27]} 83. Rc7+ {[%emt 0:00:28]} Re7 {[%emt 0:00:02]} 84. Rc8 {[%emt 0:00:17]} Rd7 {[%emt 0:01:05]} 85. Bc6 {[%emt 0:00:42]} Rd6 {[%emt 0:00:19]} 86. Rc7+ {[%emt 0:00:10]} Kg8 {[%emt 0:00:08]} 87. Be4 {[%emt 0:00:58]} Bd8 {[%emt 0:00:38]} 88. Rb7 {[%emt 0:00:53]} Bf6 {[%emt 0:01:14]} 89. Rf7 {[%emt 0:00:23]} Bc3 {[%emt 0:00:22]} 90. Bc2 {[%emt 0:00:32]} Rb6 {[%emt 0:00:11]} 91. Rc7 {[%emt 0:00:20]} Bb2 {[%emt 0:00:51]} 92. Bd3 {[%emt 0:00:14]} Kf8 {[%emt 0:00:36]} 93. Bc4 {[%emt 0:00:37]} Rb4 {[%emt 0:00:16]} 94. Kg5 {[%emt 0:01:02]} Ra4 {[%emt 0:00:48]} 95. Rf7+ {[%emt 0:00:43]} Kg8 {[%emt 0:00:01]} 96. Rb7+ {[%emt 0:00:13]} Rxc4 {[%emt 0:00:10]} 97. Rxb2 {[%emt 0:00:03]} Rc1 {[%emt 0:00:24]} 98. Rb7 {[%emt 0:00:08]} Kf8 {[%emt 0:00:21]} 99. f5 {[%emt 0:00:06]} Ra1 {[%emt 0:00:21]} 100. Rb8+ {[%emt 0:00:45]} 1-0

[Event "Elite Hotels Open 2019"]
[Site "Vaxjo"]
[Date "2019.02.09"]
[Round "6.5"]
[White "Blomqvist, Erik"]
[Black "Lindborg, Patrik"]
[Result "1-0"]
[ECO "B40"]
[WhiteElo "2483"]
[BlackElo "2210"]
[Annotator "ChessBase"]
[PlyCount "71"]
[EventDate "2019.02.08"]
[EventType "swiss"]
[EventCountry "SWE"]
[SourceTitle "playchess.com"]
[Source "ChessBase"]
[SourceQuality "1"]
[TimeControl "5400+30"]

1. e4 {[%emt 0:00:00]} c5 {[%emt 0:00:00]} 2. Nf3 {[%emt 0:00:00]} e6 {[%emt 0:00:00]} 3. c3 {[%emt 0:00:00]} d5 {[%emt 0:02:18]} 4. exd5 {[%emt 0:00:13]} Qxd5 {[%emt 0:00:11]} 5. d4 {[%emt 0:00:07]} Nf6 {[%emt 0:04:00]} 6. Na3 {[%emt 0:01:17]} Qd8 {[%emt 0:04:14]} 7. Bf4 {[%emt 0:06:34]} cxd4 {[%emt 0:13:34]} 8. Nxd4 {[%emt 0:02:47]} a6 {[%emt 0:10:39]} 9. Be2 {[%emt 0:06:40]} Nd5 {[%emt 0:08:08]} 10. Bg3 {[%emt 0:01:19]} Bd6 {[%emt 0:03:31]} 11. Bxd6 {[%emt 0:09:45]} Qxd6 {[%emt 0:02:24]} 12. Nc4 {[%emt 0:06:24]} Qc7 {[%emt 0:03:37]} 13. a4 {[%emt 0:01:36]} O-O {[%emt 0:04:21]} 14. a5 {[%emt 0:09:25]} Nd7 {[%emt 0:02:10]} 15. O-O {[%emt 0:03:46]} N7f6 {[%emt 0:07:06]} 16. Re1 {[%emt 0:02:59]} Bd7 {[%emt 0:01:37]} 17. Bf1 {[%emt 0:01:41]} Bb5 {[%emt 0:01:22]} 18. Qb3 {[%emt 0:01:47]} Bxc4 {[%emt 0:08:07]} 19. Bxc4 {[%emt 0:03:24]} Rfc8 {[%emt 0:04:00]} 20. Bf1 {[%emt 0:01:30]} Ng4 {[%emt 0:04:34]} 21. g3 {[%emt 0:00:45]} Ne5 {[%emt 0:00:40]} 22. Bg2 {[%emt 0:01:36]} Nc4 {[%emt 0:02:49]} 23. Bxd5 {[%emt 0:08:21]} exd5 {[%emt 0:00:05]} 24. Nf5 {[%emt 0:01:31]} Re8 {[%emt 0:03:46]} 25. Qb4 {[%emt 0:02:51]} Ne5 {[%emt 0:01:05]} 26. Qf4 {[%emt 0:05:00]} f6 {[%emt 0:02:12]} 27. Re3 {[%emt 0:01:40]} Qd7 {[%emt 0:01:38]} 28. Rd1 {[%emt 0:01:37]} Ng6 {[%emt 0:01:17]} 29. Qf3 {[%emt 0:01:55]} Rad8 {[%emt 0:02:19]} 30. Rxe8+ {[%emt 0:01:52]} Qxe8 {[%emt 0:00:17]} 31. Rxd5 {[%emt 0:00:45]} Ne5 {[%emt 0:02:36]} 32. Qd1 {[%emt 0:00:25]} Rb8 {[%emt 0:00:15]} 33. f4 {[%emt 0:02:32]} Nc4 {[%emt 0:00:53]} 34. Rd7 {[%emt 0:00:53]} Ne3 {[%emt 0:00:28]} 35. Qb3+ {[%emt 0:01:53]} Kh8 {[%emt 0:00:37]} 36. Re7 {[%emt 0:00:24]} 1-0